bitfinex/quotes_SOLUSD_20250416
["timestamp","ask_amount","ask_price","bid_price","bid_amount"]
[1744813321272,36.59100337,126.33,126.26,101.64964886]
[1744813321273,36.59100337,126.32,126.27,44.51034693]
[1744813321590,36.59100337,126.33,126.28,36.59100337]
[1744813321757,36.62100337,126.36,126.27,7.91934356]
[1744813321959,36.59100337,126.33,126.28,36.59100337]
[1744813322179,36.59100337,126.34,126.3,36.59100337]
[1744813322478,0.03,126.36,126.33,36.59100337]
[1744813323156,0.03,126.36,126.34,44.50615296]
[1744813323572,0.03,126.36,126.35,55.24065223]
[1744813323782,0.03,126.36,126.35,91.8316556]
[1744813323980,1e-08,126.36,126.35,91.8316556]
[1744813324180,1e-08,126.36,126.35,18.64964886]
[1744813324388,0.03,126.38,126.35,91.8316556]
[1744813324564,11.0212439,126.48,126.38,18.64964886]
[1744813324756,36.59100337,126.47,126.42,36.59100337]
[1744813324956,36.59100337,126.47,126.37,18.64964886]
[1744813325179,18.92767521,126.48,126.42,36.59100337]
[1744813325377,36.59100337,126.47,126.42,36.59100337]
[1744813325764,36.59100337,126.46,126.42,36.59100337]
[1744813325975,36.59100337,126.45,126.4,36.59100337]
[1744813326392,55.51885279,126.48,126.41,36.59100337]
[1744813326574,36.59100337,126.45,126.41,36.59100337]
[1744813326765,36.59100337,126.44,126.4,36.59100337]
[1744813326961,36.59100337,126.46,126.41,36.59100337]
[1744813327175,36.59100337,126.43,126.38,36.59100337]
[1744813327380,36.59100337,126.42,126.37,36.59100337]
[1744813327685,36.59100337,126.42,126.38,36.59100337]
[1744813327987,36.59100337,126.41,126.35,26.56396389]
[1744813328167,36.59100337,126.38,126.31,7.91702953]
[1744813328370,36.59100337,126.37,126.31,7.91702953]
[1744813328569,7.6288,126.39,126.31,7.91702953]
[1744813328570,36.59100337,126.36,126.32,36.59100337]
[1744813328756,36.59100337,126.36,126.28,7.91891035]
[1744813329082,36.59100337,126.36,126.3,7.91723308]
[1744813329286,7.6288,126.39,126.33,36.59100337]
[1744813329462,7.6288,126.39,126.35,36.59100337]
[1744813329662,44.21980337,126.39,126.35,36.59100337]
[1744813330282,44.21980337,126.39,126.31,18.64964886]
[1744813330585,36.59100337,126.36,126.3,7.91723308]
[1744813330783,36.59100337,126.34,126.26,109.40698815]
[1744813330990,36.59100337,126.34,126.27,27.71838123]
[1744813331289,44.50571828,126.35,126.3,36.59100337]
[1744813331461,7.7118,126.44,126.34,36.59100337]
[1744813331664,36.59100337,126.4,126.31,26.0]
[1744813331968,36.59100337,126.4,126.35,36.59100337]
[1744813332169,26.0,126.42,126.36,36.59100337]
[1744813332365,26.0,126.42,126.38,36.59100337]
[1744813332580,36.59100337,126.41,126.36,36.59100337]
[1744813333093,7.7118,126.44,126.39,36.59100337]
[1744813333269,44.30280337,126.44,126.39,36.59100337]
[1744813333465,7.7118,126.44,126.4,36.59100337]
[1744813333659,36.59100337,126.42,126.37,7.91327055]
[1744813333865,36.59100337,126.42,126.37,36.59100337]
[1744813334175,33.7118,126.44,126.37,36.59100337]
[1744813334360,33.7118,126.44,126.38,36.59100337]
[1744813334565,36.59100337,126.42,126.38,36.59100337]
[1744813334764,36.59100337,126.41,126.35,7.91452314]
[1744813335001,36.59100337,126.39,126.35,36.59100337]
[1744813335163,54.72184037,126.39,126.33,7.91531504]
[1744813335364,7.9113924,126.4,126.33,7.91531504]
[1744813335561,54.72184037,126.39,126.34,54.72184037]
[1744813335892,54.72184037,126.39,126.33,7.91531504]
[1744813336192,54.72184037,126.39,126.35,54.72184037]
[1744813336410,54.72184037,126.39,126.34,54.72184037]
[1744813336804,54.72184037,126.38,126.33,54.72184037]
[1744813336991,54.72184037,126.37,126.33,54.72184037]
[1744813337308,54.72184037,126.38,126.33,62.63759527]
[1744813337497,54.72184037,126.38,126.34,54.72184037]
[1744813337809,54.72184037,126.39,126.34,54.72184037]
[1744813338011,7.91177539,126.4,126.35,54.72184037]
[1744813338311,54.72184037,126.38,126.33,62.63759527]
[1744813338514,54.72184037,126.38,126.34,54.72184037]
[1744813338682,54.72184037,126.38,126.33,62.63759527]
[1744813339003,54.72184037,126.37,126.32,7.91613218]
[1744813339316,54.72184037,126.33,126.28,54.72184037]
[1744813339519,54.72184037,126.32,126.27,54.72184037]
[1744813340196,54.72184037,126.31,126.25,7.92079207]
[1744813340507,54.72184037,126.36,126.3,54.72184037]
[1744813340820,7.7785,126.37,126.33,54.72184037]
[1744813340992,7.7785,126.37,126.34,54.72184037]
[1744813341193,7.7785,126.37,126.33,54.72184037]
[1744813341393,7.7785,126.37,126.34,54.72184037]
[1744813342211,7.7785,126.37,126.33,62.63759776]
[1744813342531,54.72184037,126.36,126.32,54.72184037]
[1744813342815,41.69223549,126.37,126.25,38.45045515]
[1744813343109,54.72184037,126.33,126.28,54.72184037]
[1744813343315,54.72184037,126.33,126.29,54.72184037]
[1744813344205,88.50034037,126.37,126.32,54.72184037]
[1744813344406,62.50034037,126.37,126.32,54.72184037]
[1744813344594,62.50034037,126.37,126.33,54.72184037]
[1744813344795,1.5117,126.37,126.33,54.72184037]
[1744813344997,1.5117,126.37,126.34,54.72184037]
[1744813345689,1.5117,126.37,126.33,7.91541568]
[1744813345893,54.72184037,126.36,126.31,62.6388699]
[1744813346509,56.23354037,126.37,126.33,54.72184037]
[1744813346714,1.5117,126.37,126.34,54.72184037]
[1744813347293,1.5117,126.37,126.33,7.91544886]
[1744813347614,9.42513331,126.37,126.31,62.6388699]
[1744813347793,54.72184037,126.36,126.31,62.6388699]
[1744813348505,56.23354037,126.37,126.33,54.72184037]
[1744813348707,64.14702066,126.37,126.33,54.72184037]
[1744813348910,64.14702066,126.37,126.32,54.72184037]
[1744813349327,54.72184037,126.36,126.3,7.91734776]
[1744813349619,54.72184037,126.36,126.31,54.72184037]
[1744813350024,54.72184037,126.36,126.32,54.72184037]
[1744813350209,64.14702066,126.37,126.33,54.72184037]
[1744813350520,54.72184037,126.34,126.25,18.64964886]
[1744813350700,55.20835667,126.37,126.29,54.72184037]
[1744813350896,54.72184037,126.33,126.29,54.72184037]
[1744813351092,54.72184037,126.33,126.28,54.72184037]
[1744813351425,54.72184037,126.33,126.26,7.92016473]
[1744813351717,54.72184037,126.31,126.27,54.72184037]
[1744813351895,54.72184037,126.32,126.26,7.92016473]
[1744813352095,54.72184037,126.31,126.26,7.92016473]
[1744813352320,54.72184037,126.3,126.24,7.92141951]
[1744813352497,54.72184037,126.3,126.26,54.72184037]
[1744813352699,6.1627,126.33,126.29,54.72184037]
[1744813353022,26.0,126.34,126.3,54.72184037]
[1744813353209,54.72184037,126.33,126.25,18.64964886]
[1744813353527,62.63763885,126.33,126.29,54.72184037]
[1744813354725,62.63761843,126.33,126.29,54.72184037]
[1744813355218,62.63761843,126.33,126.28,54.72184037]
[1744813355595,54.72184037,126.32,126.28,54.72184037]
[1744813355797,54.72184037,126.32,126.27,62.64092819]
[1744813356022,54.72184037,126.31,126.26,54.72184037]
[1744813356219,54.72184037,126.31,126.24,19.80314619]
[1744813356220,54.72184037,126.31,126.27,54.72184037]
[1744813356523,62.63761843,126.33,126.28,54.72184037]
[1744813356900,54.72184037,126.32,126.28,54.72184037]
[1744813357105,54.72184037,126.32,126.25,27.72244473]
[1744813357314,36.11834054,126.31,126.27,36.11834054]
[1744813357505,44.03556449,126.31,126.26,44.03849603]
[1744813357705,36.11834054,126.3,126.26,36.11834054]
[1744813357923,44.03556449,126.31,126.26,36.11834054]
[1744813358107,44.03556449,126.31,126.27,36.11834054]
[1744813358622,44.03465211,126.33,126.29,36.11834054]
[1744813358923,7.91631157,126.33,126.29,36.11834054]
[1744813359124,44.03465211,126.33,126.29,36.11834054]
[1744813359526,36.11834054,126.34,126.29,44.03600961]
[1744813359709,36.11834054,126.34,126.3,36.11834054]
[1744813360026,33.91482855,126.35,126.3,36.11834054]
[1744813360225,36.11834054,126.33,126.29,36.11834054]
[1744813360431,36.11834054,126.32,126.26,7.92016473]
[1744813360634,36.11834054,126.31,126.26,7.92016473]
[1744813360808,36.11834054,126.31,126.27,36.11834054]
[1744813361404,36.11834054,126.31,126.25,27.72229572]
[1744813361608,45.78630787,126.35,126.27,36.11834054]
[1744813361819,36.11834054,126.33,126.28,36.11834054]
[1744813362022,36.11834054,126.33,126.25,27.72277226]
[1744813362219,36.11834054,126.32,126.28,36.11834054]
[1744813362435,36.11834054,126.31,126.27,36.11834054]
[1744813362821,36.11834054,126.3,126.24,7.92141951]
[1744813363027,36.11834054,126.3,126.25,36.11834054]
[1744813363217,36.11834054,126.3,126.26,36.11834054]
[1744813363721,36.11834054,126.3,126.25,7.92035413]
[1744813364229,36.11834054,126.3,126.26,36.11834054]
[1744813364829,36.11834054,126.31,126.26,36.11834054]
[1744813366016,36.11834054,126.29,126.25,36.11834054]
[1744813366223,36.11834054,126.29,126.24,44.03949494]
[1744813366419,36.11834054,126.29,126.23,0.063]
[1744813366420,36.11834054,126.27,126.23,0.063]
[1744813366733,36.11834054,126.24,126.23,0.063]
[1744813366913,36.11834054,126.25,126.23,0.063]
[1744813367434,36.11834054,126.26,126.23,0.063]
[1744813367821,36.11834054,126.25,126.23,0.063]
[1744813368038,62.11834054,126.26,126.23,0.063]
[1744813368441,36.11834054,126.26,126.23,0.063]
[1744813368741,36.11834054,126.3,126.25,36.11834054]
[1744813368943,43.92714054,126.31,126.26,36.11834054]
[1744813369107,43.92714054,126.31,126.24,36.11834054]
[1744813369108,36.11834054,126.29,126.24,36.11834054]
[1744813369427,36.11834054,126.28,126.23,36.18134054]
[1744813369943,36.11834054,126.27,126.23,0.063]
[1744813370138,36.11834054,126.25,126.23,0.063]
[1744813370338,36.11834054,126.26,126.23,0.063]
[1744813370937,36.11834054,126.27,126.23,0.063]
[1744813371145,36.11834054,126.26,126.23,0.063]
[1744813371337,36.11834054,126.24,126.23,0.063]
[1744813371644,7.8088,126.31,126.23,36.18134054]
[1744813371826,7.8088,126.31,126.27,36.11834054]
[1744813372139,44.03411668,126.33,126.29,36.11834054]
[1744813372329,37.73754054,126.34,126.29,36.11834054]
[1744813372641,62.11834054,126.33,126.29,36.11834054]
[1744813372835,1.6192,126.34,126.3,36.11834054]
[1744813373039,1.5522,126.38,126.32,36.11834054]
[1744813373249,1.5522,126.38,126.34,36.11834054]
[1744813373733,76.59215889,126.39,126.34,36.11834054]
[1744813373935,9.45117029,126.41,126.35,44.03286368]
[1744813374125,13.91571733,126.43,126.38,36.11834054]
[1744813374437,68.12424054,126.43,126.38,36.11834054]
[1744813374618,44.05749576,126.44,126.39,36.11834054]
[1744813374819,36.11834054,126.43,126.38,36.11834054]
[1744813375036,0.03,126.44,126.4,36.11834054]
[1744813375336,0.03,126.44,126.42,36.11834054]
[1744813375843,0.03,126.44,126.43,36.11834054]
[1744813376035,0.03,126.44,126.41,44.02896789]
[1744813376231,0.03,126.44,126.41,36.11834054]
[1744813376455,0.03,126.44,126.43,36.11834054]
[1744813376942,0.03,126.44,126.42,36.11834054]
[1744813377949,0.03,126.44,126.41,36.11834054]
[1744813378144,0.03,126.44,126.39,7.91176387]
[1744813378145,0.03,126.44,126.4,36.11834054]
[1744813378638,0.03,126.44,126.41,36.11834054]
[1744813378823,0.03,126.44,126.4,36.11834054]
[1744813379319,36.14834054,126.44,126.4,36.11834054]
[1744813379514,7.93897424,126.44,126.37,14.53740886]
[1744813379736,0.03,126.44,126.41,36.11834054]
[1744813380132,44.05755999,126.44,126.39,36.11834054]
[1744813380440,36.11834054,126.43,126.39,36.11834054]
[1744813380637,36.11834054,126.43,126.36,7.91363227]
[1744813380843,36.11834054,126.42,126.35,7.91452314]
[1744813381021,36.11834054,126.43,126.38,36.11834054]
[1744813381644,7.9101408,126.42,126.39,36.11834054]
[1744813381851,44.02848134,126.42,126.38,36.11834054]
[1744813382142,7.9101408,126.42,126.38,36.11834054]
[1744813382729,0.03,126.44,126.4,36.11834054]
[1744813382933,36.11834054,126.42,126.37,36.11834054]
[1744813383228,36.11834054,126.41,126.37,36.11834054]
[1744813383448,36.11834054,126.4,126.34,14.31561525]
[1744813383624,44.03019409,126.4,126.35,36.11834054]
[1744813383824,36.11834054,126.39,126.35,36.11834054]
[1744813384026,36.11834054,126.39,126.32,7.91640278]
[1744813384244,36.11834054,126.38,126.34,36.11834054]
[1744813384540,36.11834054,126.41,126.36,36.11834054]
[1744813384720,36.11834054,126.4,126.36,36.11834054]
[1744813384919,36.11834054,126.38,126.32,7.91640278]
[1744813385142,77.97094116,126.42,126.28,288.20355178]
[1744813385143,36.11834054,126.35,126.28,1.529]
[1744813385353,36.11834054,126.37,126.33,36.11834054]
[1744813385535,44.03176463,126.37,126.32,36.11834054]
[1744813385847,36.11834054,126.36,126.32,36.11834054]
[1744813386550,36.11834054,126.35,126.29,27.7139916]
[1744813386849,36.11834054,126.35,126.31,36.11834054]
[1744813387628,7.9126444,126.38,126.3,36.11834054]
[1744813387839,7.9126444,126.38,126.29,7.91828331]
[1744813387840,36.11834054,126.35,126.31,36.11834054]
[1744813388039,36.11834054,126.38,126.33,36.11834054]
[1744813388246,36.11834054,126.37,126.33,36.11834054]
[1744813388526,36.11834054,126.37,126.3,54.7679894]
[1744813388527,36.11834054,126.36,126.31,36.11834054]
[1744813388729,36.11834054,126.36,126.31,44.03497481]
[1744813389350,36.11834054,126.36,126.32,36.11834054]
[1744813389658,36.11834054,126.36,126.31,44.03497481]
[1744813390028,36.11834054,126.36,126.27,6.6589]
[1744813390029,7.91432121,126.36,126.27,26.45743079]
[1744813390235,36.11834054,126.35,126.3,36.11834054]
[1744813390451,36.11834054,126.36,126.31,36.11834054]
[1744813391151,36.11834054,126.35,126.31,7.91692597]
[1744813391354,36.11834054,126.34,126.31,7.91692597]
[1744813391728,36.11834054,126.35,126.31,44.03526651]
[1744813392152,36.11834054,126.35,126.31,7.91692597]
[1744813392354,36.11834054,126.34,126.3,7.91765637]
[1744813392581,36.11834054,126.32,126.28,7.91891035]
[1744813392756,36.11834054,126.31,126.27,44.03766689]
[1744813393065,36.11834054,126.32,126.27,44.03766689]
[1744813393226,36.11834054,126.32,126.27,7.91932635]
[1744813393429,36.11834054,126.32,126.27,44.03766689]
[1744813393629,36.11834054,126.31,126.26,44.0382618]
[1744813393927,36.11834054,126.28,126.24,7.92133189]
[1744813394128,36.11834054,126.28,126.23,44.10323668]
[1744813394351,36.11834054,126.28,126.24,36.11834054]
[1744813394531,44.03546134,126.31,126.26,36.11834054]
[1744813394727,36.11834054,126.32,126.27,36.11834054]
[1744813394924,70.03417798,126.33,126.28,36.11834054]
[1744813395342,36.11834054,126.32,126.28,36.11834054]
[1744813396047,36.11834054,126.32,126.28,44.03707223]
[1744813397051,44.03480582,126.32,126.28,36.11834054]
[1744813397230,36.11834054,126.32,126.27,36.11834054]
[1744813397549,36.11834054,126.32,126.28,36.11834054]
[1744813397732,44.03441321,126.33,126.28,36.11834054]
[1744813397933,44.03441321,126.33,126.25,27.72242949]
[1744813398134,44.03441321,126.33,126.28,36.11834054]
[1744813398350,36.11834054,126.32,126.28,36.11834054]
[1744813398658,7.91607267,126.33,126.25,27.72242949]
[1744813398659,36.11834054,126.33,126.25,27.72242949]
[1744813398843,36.11834054,126.33,126.28,36.11834054]
[1744813399043,36.11834054,126.31,126.27,36.11834054]
[1744813399243,36.11834054,126.31,126.26,36.11834054]
[1744813399565,36.11834054,126.29,126.24,20.32116608]
[1744813399754,36.11834054,126.3,126.25,36.11834054]
[1744813400073,44.03537007,126.31,126.26,44.03827258]
[1744813400261,36.11834054,126.31,126.26,44.03827258]
[1744813400430,6.052,126.35,126.3,36.11834054]
[1744813400759,36.11834054,126.35,126.31,36.11834054]
[1744813400955,45.54452568,126.36,126.31,36.11834054]
[1744813401256,37.63044054,126.36,126.32,36.11834054]
[1744813401652,45.54440911,126.36,126.32,36.11834054]
[1744813401836,37.63044054,126.36,126.32,36.11834054]
[1744813402163,45.54437877,126.36,126.32,36.11834054]
[1744813402457,9.42603823,126.36,126.32,36.11834054]
[1744813402754,45.54437877,126.36,126.32,36.11834054]
[1744813403236,1.5121,126.36,126.32,44.03442229]
[1744813404362,37.63044054,126.36,126.32,44.03442229]
[1744813404536,45.54442659,126.36,126.32,44.03442229]
[1744813404960,37.63044054,126.36,126.32,44.03442229]
[1744813405255,45.54438891,126.36,126.32,36.11834054]
[1744813405459,36.11834054,126.35,126.31,44.03508683]
[1744813405659,9.42604837,126.36,126.31,44.03508683]
[1744813405867,36.11834054,126.35,126.31,44.03508683]
[1744813406364,36.11834054,126.35,126.31,36.11834054]
[1744813406548,1.5121,126.36,126.32,36.11834054]
[1744813406861,37.63044054,126.36,126.32,36.11834054]
[1744813407035,45.54447618,126.36,126.32,36.11834054]
[1744813407236,45.54447618,126.36,126.31,36.11834054]
[1744813407643,36.11834054,126.35,126.3,36.11834054]
[1744813407843,9.42613564,126.36,126.29,36.11834054]
[1744813408043,36.11834054,126.35,126.31,36.11834054]
[1744813408562,37.63044054,126.36,126.31,44.03518222]
[1744813408743,37.63044054,126.36,126.32,36.11834054]
[1744813409263,45.54434108,126.36,126.32,36.11834054]
[1744813409644,45.54434108,126.36,126.31,36.11834054]
[1744813409844,37.63044054,126.36,126.31,7.91694753]
[1744813410267,37.63044054,126.36,126.31,44.03528807]
[1744813410749,36.11834054,126.36,126.32,36.11834054]
[1744813411072,1.6303,126.39,126.35,36.11834054]
[1744813411241,1.6303,126.39,126.37,36.11834054]
[1744813411445,1.6303,126.39,126.36,36.11834054]
[1744813411865,37.74864054,126.39,126.35,36.11834054]
[1744813412168,37.74864054,126.39,126.34,36.11834054]
[1744813412548,37.74864054,126.39,126.32,6.6164]
[1744813412846,37.74864054,126.39,126.35,44.03286368]
[1744813414976,254.8189,126.45,126.37,36.11834054]
[1744813415282,43.95724054,126.45,126.41,36.11834054]
[1744813415456,7.8389,126.45,126.37,18.64964886]
[1744813415771,36.11834054,126.42,126.35,18.64964886]
[1744813415971,36.11834054,126.43,126.38,36.11834054]
[1744813416163,0.03,126.44,126.39,36.11834054]
[1744813416369,36.14834054,126.44,126.4,36.11834054]
[1744813416569,36.14834054,126.44,126.39,36.11834054]
[1744813417047,0.03,126.44,126.4,36.11834054]
[1744813417254,36.14834054,126.44,126.38,7.9126444]
[1744813417570,36.11834054,126.43,126.38,44.03098494]
[1744813418346,36.11834054,126.41,126.36,36.11834054]
[1744813418563,36.11834054,126.4,126.35,44.03286368]
[1744813419051,36.11834054,126.4,126.36,44.0320795]
[1744813419547,43.02985674,126.4,126.36,36.11834054]
[1744813419771,7.9115162,126.4,126.36,36.11834054]
[1744813419960,44.02985674,126.4,126.35,44.03256667]
[1744813420271,44.02985674,126.4,126.34,7.91486373]
[1744813420467,36.11834054,126.37,126.32,44.03474332]
[1744813420649,36.11834054,126.37,126.33,36.11834054]
[1744813420850,36.11834054,126.38,126.33,36.11834054]
[1744813421050,44.03173256,126.37,126.33,36.11834054]
[1744813421276,36.11834054,126.37,126.32,44.03474332]
[1744813421472,44.03183602,126.37,126.32,7.91640278]
[1744813421656,36.11834054,126.4,126.35,36.11834054]
[1744813421856,44.02910709,126.41,126.36,36.11834054]
[1744813422074,36.11834054,126.39,126.32,7.91640278]
[1744813422271,36.11834054,126.39,126.35,36.11834054]
[1744813422749,36.11834054,126.37,126.33,36.11834054]
[1744813422953,36.11834054,126.36,126.32,7.91640278]
[1744813423474,7.91349979,126.37,126.32,7.91640278]
[1744813423674,36.11834054,126.35,126.31,7.91670404]
[1744813424060,36.11834054,126.35,126.31,44.03504458]
[1744813424753,36.11834054,126.34,126.29,0.063]
[1744813424952,36.11834054,126.33,126.29,36.18134054]
[1744813425571,36.11834054,126.31,126.29,0.063]
[1744813425982,36.11834054,126.32,126.29,0.063]
[1744813426165,36.11834054,126.31,126.29,0.063]
[1744813426570,36.11834054,126.32,126.29,0.063]
[1744813426760,36.11834054,126.33,126.29,36.18134054]
[1744813427080,36.11834054,126.32,126.29,0.063]
[1744813427777,36.11834054,126.3,126.29,0.063]
[1744813428784,48.19834054,126.32,126.29,0.063]
[1744813428965,36.11834054,126.31,126.29,0.063]
[1744813429562,12.08,126.32,126.29,36.18134054]
[1744813431483,12.08,126.32,126.29,44.09906543]
[1744813431979,36.11834054,126.34,126.3,36.11834054]
[1744813432166,36.11834054,126.34,126.29,44.09906543]
[1744813433165,44.03377681,126.34,126.29,0.063]
[1744813433372,36.11834054,126.33,126.29,36.18134054]
[1744813434067,44.03377681,126.34,126.29,36.18134054]
[1744813434275,7.91543627,126.34,126.29,36.18134054]
[1744813434588,36.11834054,126.35,126.3,44.03599691]
[1744813434783,36.11834054,126.35,126.31,36.11834054]
[1744813434984,12.08,126.36,126.33,36.11834054]
[1744813435279,36.11834054,126.37,126.3,71.94633784]
[1744813435478,36.11834054,126.37,126.33,36.11834054]
[1744813435687,33.9123983,126.39,126.34,36.11834054]
[1744813435859,12.08,126.4,126.36,36.11834054]
[1744813436056,48.19834054,126.4,126.36,36.11834054]
[1744813436271,12.08,126.4,126.37,36.11834054]
[1744813436457,36.14834054,126.42,126.39,7.91201835]
[1744813436681,62.14834054,126.42,126.39,7.91201835]
[1744813436876,36.14834054,126.42,126.39,7.91201835]
[1744813437077,0.03,126.42,126.39,44.03035889]
[1744813437977,55.16727861,126.44,126.39,44.03035889]
[1744813438176,11.14,126.44,126.4,36.11834054]
[1744813438589,47.25834054,126.44,126.4,44.02957918]
[1744813438886,36.11834054,126.43,126.38,44.03072683]
[1744813439087,36.11834054,126.42,126.38,44.03072683]
[1744813439388,36.11834054,126.41,126.36,36.11834054]
[1744813440186,36.11834054,126.4,126.36,36.11834054]
[1744813440386,36.11834054,126.39,126.34,36.11834054]
[1744813440687,36.11834054,126.39,126.34,44.03339315]
[1744813440865,36.11834054,126.38,126.34,44.03339315]
[1744813441063,36.11834054,126.37,126.32,36.11834054]
[1744813441262,36.11834054,126.37,126.33,36.11834054]
[1744813441487,48.19834054,126.39,126.34,36.11834054]
[1744813442090,36.11834054,126.38,126.34,36.11834054]
[1744813442262,12.08,126.39,126.32,36.11834054]
[1744813442263,36.11834054,126.36,126.32,36.11834054]
[1744813442468,36.11834054,126.36,126.32,7.91640278]
[1744813442683,36.11834054,126.35,126.31,44.03510046]
[1744813442887,36.11834054,126.35,126.31,7.91675992]
[1744813443390,44.03123234,126.38,126.33,36.11834054]
[1744813443590,82.1104846,126.39,126.34,36.11834054]
[1744813443783,36.11834054,126.38,126.33,36.11834054]
[1744813443975,36.11834054,126.38,126.34,36.11834054]
[1744813444281,36.11834054,126.38,126.34,44.03315324]
[1744813444480,36.11834054,126.38,126.34,7.9148127]
[1744813444673,44.0311204,126.38,126.34,7.9148127]
[1744813445110,36.11834054,126.37,126.33,44.03379952]
[1744813445284,36.11834054,126.36,126.31,36.11834054]
[1744813445801,36.11834054,126.36,126.32,36.11834054]
[1744813446381,44.03243122,126.36,126.31,7.91645686]
[1744813446899,44.03243122,126.36,126.32,36.11834054]
[1744813447104,44.03243122,126.36,126.31,44.0347974]
[1744813447985,36.11834054,126.38,126.33,36.11834054]
[1744813448178,36.11834054,126.38,126.34,36.11834054]
[1744813448598,48.19834054,126.39,126.35,36.11834054]
[1744813448900,36.11834054,126.37,126.32,36.11834054]
[1744813449199,36.11834054,126.33,126.3,7.91765637]
[1744813449500,36.11834054,126.34,126.3,44.03599691]
[1744813449885,108.9,126.38,126.3,44.03599691]
[1744813449886,7.91498993,126.35,126.3,7.91765637]
[1744813450202,36.11834054,126.34,126.3,7.91765637]
[1744813450602,36.11834054,126.34,126.3,44.03599691]
[1744813451481,36.11834054,126.35,126.3,44.03599691]
[1744813451789,12.08,126.39,126.34,36.11834054]
[1744813451979,12.08,126.39,126.36,36.11834054]
[1744813453195,12.08,126.39,126.36,7.91337435]
[1744813453601,48.19834054,126.39,126.36,7.91337435]
[1744813453793,56.11044109,126.39,126.34,44.0332531]
[1744813453983,36.11834054,126.38,126.34,44.0332531]
[1744813454299,12.08,126.39,126.34,7.91491256]
[1744813454512,37.77764054,126.41,126.37,36.11834054]
[1744813455005,45.68844028,126.41,126.36,36.11834054]
[1744813455200,9.57009974,126.41,126.35,36.11834054]
[1744813455374,36.11834054,126.4,126.35,36.11834054]
[1744813455904,36.11834054,126.39,126.34,36.11834054]
[1744813456082,36.11834054,126.38,126.34,36.11834054]
[1744813456283,36.11834054,126.39,126.34,36.11834054]
[1744813456507,9.57009974,126.41,126.36,36.11834054]
[1744813456508,1.6593,126.41,126.36,36.11834054]
[1744813456705,7.91022646,126.42,126.38,36.11834054]
[1744813456900,56.13818415,126.43,126.38,36.11834054]
[1744813457105,48.22834054,126.43,126.38,44.03073867]
[1744813457405,56.13787352,126.43,126.38,44.03073867]
[1744813457602,36.11834054,126.42,126.38,7.91239813]
[1744813458002,0.03,126.43,126.41,36.11834054]
[1744813458392,0.03,126.43,126.38,27.69400914]
[1744813458703,0.03,126.43,126.41,36.11834054]
[1744813458906,0.03,126.43,126.42,36.11834054]
[1744813459301,0.03,126.43,126.42,44.02848134]
[1744813460013,0.03,126.43,126.42,7.9101408]
[1744813463110,36.14834054,126.43,126.37,36.11834054]
[1744813463288,36.11834054,126.42,126.38,44.03047977]
[1744813463699,36.14834054,126.43,126.38,44.03047977]
[1744813464015,0.03,126.43,126.4,36.11834054]
[1744813464717,0.03,126.43,126.38,27.69375024]
[1744813464907,0.03,126.43,126.39,36.11834054]
[1744813465416,0.03,126.43,126.39,44.02978505]
[1744813465785,0.03,126.43,126.41,36.11834054]
[1744813466918,0.03,126.43,126.42,36.11834054]
[1744813467717,0.03,126.43,126.42,44.02848134]
[1744813469921,0.03,126.45,126.43,18.64964886]
[1744813470127,0.03,126.45,126.44,36.11834054]
[1744813470823,1e-08,126.46,126.44,61.3225894]
[1744813470993,1e-08,126.46,126.45,36.11834054]
[1744813471689,1e-08,126.46,126.45,44.02660467]
[1744813472116,1e-08,126.46,126.45,62.67625353]
[1744813474719,2.9206439,126.48,126.45,98.79459407]
[1744813474912,1e-08,126.49,126.47,116.88632994]
[1744813475101,0.03,126.5,126.45,79.06024515]
[1744813475307,0.03,126.5,126.46,36.11834054]
[1744813475705,0.03,126.5,126.48,36.11834054]
[1744813475903,0.03,126.5,126.49,36.11834054]
[1744813476102,0.03,126.5,126.49,44.02410384]
[1744813477408,0.03,126.5,126.49,62.6737527]
[1744813479532,1e-08,126.5,126.49,62.6737527]
[1744813480212,0.01000001,126.51,126.49,64.2086527]
[1744813480413,0.01000001,126.51,126.5,36.11834054]
[1744813481098,0.03,126.57,126.51,18.64964886]
[1744813481301,0.03,126.57,126.56,36.11834054]
[1744813482025,0.03,126.57,126.52,11.82]
[1744813482203,0.03,126.57,126.54,36.11834054]
[1744813482397,0.03,126.57,126.56,36.11834054]
[1744813484015,0.03,126.57,126.54,36.11834054]
[1744813484215,0.03,126.57,126.55,7.90201501]
[1744813484525,36.14834054,126.57,126.54,7.90240357]
[1744813485523,0.03,126.57,126.54,44.02074411]
[1744813485721,0.03,126.57,126.54,7.90240357]
[1744813485927,0.03,126.57,126.55,36.11834054]
[1744813486320,0.03,126.57,126.54,36.11834054]
[1744813486511,0.03,126.57,126.55,36.11834054]
[1744813487139,0.03,126.57,126.56,36.11834054]
[1744813488434,0.03,126.57,126.56,62.66938004]
[1744813488625,1.6544,126.62,126.57,18.64964886]
[1744813488820,36.14834054,126.63,126.59,36.11834054]